fUSD/lending_fUSD_20260313
["ID","MTS","AMOUNT","RATE_DAILY","PERIOD"]
[408313587,1773397668394,177.1,0.00013949,2]
[408313588,1773397691312,869.95,0.00014,2]
[408313592,1773397831981,-282.0,0.00015851,2]
[408313593,1773397831991,-1558.21,0.00015851,2]
[408313594,1773397832001,-2500.0,0.00016926,2]
[408313595,1773397832010,-1599.83055737,0.00017366,2]
[408313596,1773397832019,-100.56842302,0.00017366,2]
[408313597,1773397832031,-50.43157698,0.00017366,2]
[408313598,1773397832040,-151.0,0.00017366,2]
[408313599,1773397832049,-300.0,0.00017366,2]
[408313600,1773397832059,-152.0,0.00017366,2]
[408313601,1773397832068,-2500.0,0.00017436,2]
[408313602,1773397832077,-2500.0,0.00017745,2]
[408313603,1773397832087,-226.56842302,0.00018,7]
[408313604,1773397832098,-31.03157698,0.00018,7]
[408313605,1773397832108,-1268.96842302,0.00018249,2]
[408313606,1773397832120,-377.05257712,0.00018249,2]
[408313607,1773397832129,-200.0,0.00018475,2]
[408313608,1773397832139,-199.71,0.00018591,2]
[408313609,1773397832151,-177.1,0.00018598,2]
[408313610,1773397832160,-152.74,0.00018665,2]
[408313611,1773397832171,-198.53,0.00018714,2]
[408313612,1773397832181,-1944.86742288,0.00018732,2]
[408313613,1773397832194,-55.13257712,0.00018732,2]
[408313615,1773397832204,-1233.36,0.00018789,2]
[408313617,1773397832214,-500.0,0.00018837,2]
[408313618,1773397832224,-153.0,0.00018904,2]
[408313619,1773397832234,-1327.8,0.00018998,2]
[408313620,1773397832244,-500.0,0.00018999,2]
[408313621,1773397832254,-318.20247461,0.00018999,2]
[408313622,1773397832264,-151.0,0.00018999,2]
[408313623,1773397832274,-3240.0,0.0001905,2]
[408313624,1773397832284,-500.0,0.00019054,2]
[408313625,1773397832293,-151.0,0.00019054,2]
[408313626,1773397832303,-500.0,0.00019109,2]
[408313627,1773397832312,-151.0,0.00019109,2]
[408313628,1773397832321,-500.0,0.00019164,2]
[408313629,1773397832331,-151.0,0.00019164,2]
[408313630,1773397832342,-500.0,0.00019219,2]
[408313631,1773397832351,-151.0,0.00019219,2]
[408313632,1773397832361,-839.1447,0.00019239,2]
[408313633,1773397832370,-1628.00897482,0.00019328,2]
[408313634,1773397832379,-9999.99,0.00019339,2]
[408313635,1773397832388,-150.99,0.00019339,2]
[408313636,1773397832398,-9185.75523305,0.00019339,2]
[408313637,1773397832409,-54946.05476695,0.00019339,2]
[408313638,1773397832419,-17121.54,0.00019339,2]
[408313639,1773397832427,-417.18,0.00019339,2]
[408313640,1773397832437,-999.99,0.00019339,2]
[408313641,1773397832446,-150.99,0.00019339,2]
[408313642,1773397832455,-8288.36,0.00019339,2]
[408313643,1773397832465,-516.89,0.00019339,2]
[408313644,1773397832474,-148.35667376,0.00019339,2]
[408313645,1773397832485,-9851.63332624,0.00019339,2]
[408313646,1773397832494,-163.669636,0.00019517,2]
[408313647,1773397832505,-168.0,0.00019524,2]
[408313648,1773397832515,-150.0,0.00019561,2]
[408313650,1773397832524,-500.0,0.00019561,2]
[408313652,1773397832533,-150.0,0.00019562,2]
[408313654,1773397832542,-150.0,0.00019562,2]
[408313656,1773397832552,-168.0,0.00019567,2]
[408313658,1773397832561,-163.66963598,0.00019581,2]
[408313660,1773397832570,-2463.0,0.0001959,2]
[408313663,1773397832579,-3753.0,0.0001959,2]
[408313664,1773397832589,-252.39007234,0.00019616,2]
[408313665,1773397832598,-500.0,0.00019616,2]
[408313666,1773397832608,-152.33368801,0.00019617,2]
[408313667,1773397832618,-150.0,0.00019617,2]
[408313669,1773397832628,-163.66963598,0.00019645,2]
[408313670,1773397832637,-150.0,0.00019652,2]
[408313672,1773397832647,-237.03813108,0.00019671,2]
[408313673,1773397832656,-150.0,0.00019672,2]
[408313674,1773397832666,-150.0,0.00019707,2]
[408313675,1773397832676,-163.66963598,0.00019709,2]
[408313676,1773397832685,-402.27,0.00019711,2]
[408313677,1773397832695,-168.0,0.0001972,2]
[408313678,1773397832706,-150.0,0.00019726,2]
[408313679,1773397832715,-150.0,0.00019726,2]
[408313680,1773397832725,-150.0,0.00019726,2]
[408313681,1773397832735,-150.0,0.00019726,2]
[408313682,1773397832744,-851.0,0.00019757,2]
[408313683,1773397832754,-150.0,0.00019762,2]
[408313684,1773397832764,-163.66963598,0.00019772,2]
[408313685,1773397832773,-150.0,0.00019781,2]
[408313686,1773397832783,-150.0,0.00019781,2]
[408313687,1773397832793,-1187.602,0.000198,2]
[408313688,1773397832802,-660.36029,0.000198,2]
[408313689,1773397832812,-660.36029,0.000198,2]
[408313690,1773397832822,-2500.0,0.00019836,2]
[408313691,1773397832836,-250.0,0.00019836,2]
[408313692,1773397832845,-163.66963598,0.00019836,2]
[408313693,1773397832855,-168.0,0.00019894,2]
[408313694,1773397832864,-622.3423,0.000199,2]
[408313695,1773397832875,-167.74279387,0.000199,2]
[408313696,1773397832884,-1470.3559598,0.000199,2]
[408313697,1773397832894,-230.41427956,0.000199,2]
[408313698,1773397832903,-4850.4,0.000199,2]
[408313699,1773397832915,-163.66963598,0.000199,2]
[408313700,1773397832925,-9611.1539473,0.000199,2]
[408313701,1773397832934,-493.63,0.00019902,2]
[408313702,1773397832947,-2393.0,0.00019973,2]
[408313703,1773397832956,-3692.0,0.00019973,2]
[408313704,1773397832966,-500.0,0.00019973,2]
[408313705,1773397832975,-500.0,0.00019973,2]
[408313706,1773397832985,-500.0,0.00019973,2]
[408313707,1773397832994,-500.0,0.00019973,2]
[408313708,1773397833004,-500.0,0.00019973,2]
[408313709,1773397833014,-215.76993859,0.0001999,2]
[408313710,1773397833023,-215.76993859,0.0001999,2]
[408313711,1773397833033,-300.0,0.00019999,2]
[408313712,1773397833043,-539.6122178,0.00019999,2]
[408313713,1773397833052,-500.0,0.00019999,2]
[408313714,1773397833062,-515.52448038,0.00019999,2]
[408313715,1773397833071,-540.40783545,0.00019999,2]
[408313716,1773397833081,-501.88920658,0.00019999,2]
[408313717,1773397833090,-500.0,0.00019999,2]
[408313718,1773397833099,-500.0,0.00019999,2]
[408313719,1773397833109,-500.0,0.00019999,2]
[408313720,1773397833118,-500.0,0.00019999,2]
[408313721,1773397833128,-223.72457391,0.00019999,2]
[408313722,1773397833138,-500.0,0.00019999,2]
[408313723,1773397833147,-500.0,0.00019999,2]
[408313724,1773397833158,-500.0,0.00019999,2]
[408313725,1773397833168,-500.0,0.00019999,2]
[408313726,1773397833179,-500.0,0.00019999,2]
[408313727,1773397833188,-500.0,0.00019999,2]
[408313728,1773397833199,-500.0,0.00019999,2]
[408313729,1773397833208,-500.0,0.00019999,2]
[408313730,1773397833218,-500.0,0.00019999,2]
[408313731,1773397833228,-500.0,0.00019999,2]
[408313732,1773397833238,-500.0,0.00019999,2]
[408313733,1773397833248,-211.8108111,0.00019999,2]
[408313734,1773397833257,-500.0,0.00019999,2]
[408313735,1773397833267,-500.0,0.00019999,2]
[408313736,1773397833277,-500.0,0.00019999,2]
[408313737,1773397833287,-500.0,0.00019999,2]
[408313738,1773397833297,-500.0,0.00019999,2]
[408313739,1773397833306,-500.0,0.00019999,2]
[408313740,1773397833316,-500.0,0.00019999,2]
[408313741,1773397833326,-500.0,0.00019999,2]
[408313742,1773397833335,-480.63223291,0.00019999,2]
[408313743,1773397833345,-500.0,0.00019999,2]
[408313744,1773397833354,-1923.0,0.0002,2]
[408313745,1773397833364,-3317.0,0.0002,2]
[408313746,1773397833373,-69749.20751109,0.0002,2]
[408313747,1773397833386,-155930.63479648,0.0002,2]
[408313748,1773397833397,-103366.29068211,0.0002,2]
[408313749,1773397833415,-1883.777825,0.0002,2]
[408313750,1773397833428,-6088.93583371,0.0002,2]
[408313759,1773397838085,-288.11117521,0.00019999,2]
[408313879,1773397840322,-212.18149335,0.00019999,2]
[408313880,1773397840332,-6327.3187215,0.0002,2]
[408313886,1773397843088,-260862.06619636,0.0002,2]
[408313890,1773397845946,-269.99332091,0.0002,2]
[408313892,1773397846001,-6720.0,0.0002,2]
[408313893,1773397846029,-189.74164251,0.0002,2]
[408313894,1773397846041,-229716.81239439,0.0002,2]
[408313895,1773397846057,-39218.3368558,0.0002,2]
[408313896,1773397846069,-342.40034036,0.0002,2]
[408313897,1773397846113,-3102.34948791,0.0002,2]
[408313898,1773397846331,-846.9257,0.00018737,2]
[408313899,1773397846341,-1520.05935791,0.0002,2]
[408313903,1773398091262,1000.0,0.00032876,120]
[408313904,1773398188948,500.0,0.0003287,120]
[408313964,1773399032167,-231.84,0.000186,7]
[408313965,1773399032180,-429.24779409,0.00018671,2]
[408313966,1773399032189,-942.42,0.00018806,2]
[408313967,1773399032199,-150.0,0.00018875,2]
[408313968,1773399032210,-2000.0,0.00018885,2]
[408313969,1773399032221,-500.0,0.00018999,2]
[408313970,1773399032231,-318.20247461,0.00018999,2]
[408313971,1773399032241,-1200.0,0.00019053,2]
[408313972,1773399032251,-500.0,0.00019054,2]
[408313973,1773399032260,-500.0,0.00019109,2]
[408313974,1773399032270,-500.0,0.00019164,2]
[408313975,1773399032280,-500.0,0.00019219,2]
[408313976,1773399032289,-1785.0,0.000195,2]
[408313977,1773399032299,-150.0,0.00019562,2]
[408313978,1773399032308,-500.0,0.00019562,2]
[408313979,1773399032318,-250.0,0.00019562,2]
[408313980,1773399032328,-500.0,0.00019562,2]
[408313981,1773399032337,-150.0,0.00019562,2]
[408313982,1773399032346,-500.0,0.00019562,2]
[408313983,1773399032355,-500.0,0.00019562,2]
[408313984,1773399032364,-150.0,0.00019562,2]
[408313985,1773399032373,-150.0,0.00019562,2]
[408313986,1773399032382,-500.0,0.00019562,2]
[408313988,1773399032391,-150.34162832,0.00019562,2]
[408313990,1773399032401,-150.0,0.00019562,2]
[408313992,1773399032411,-150.0,0.00019562,2]
[408313994,1773399032421,-150.0,0.00019562,2]
[408313996,1773399032431,-2463.0,0.0001959,2]
[408313997,1773399032441,-2037.666,0.0001959,2]
[408313999,1773399032451,-180.95414296,0.000196,2]
[408314000,1773399032461,-150.0,0.00019617,2]
[408314001,1773399032470,-500.0,0.00019617,2]
[408314002,1773399032480,-500.0,0.00019617,2]
[408314003,1773399032490,-150.0,0.00019617,2]
[408314004,1773399032499,-500.0,0.00019617,2]
[408314005,1773399032508,-500.0,0.00019617,2]
[408314006,1773399032517,-500.0,0.00019617,2]
[408314007,1773399032527,-150.0,0.00019617,2]
[408314008,1773399032537,-150.0,0.00019617,2]
[408314009,1773399032547,-150.0,0.00019617,2]
[408314010,1773399032556,-839.1447,0.0001963,2]
[408314011,1773399032565,-200.0,0.00019672,2]
[408314012,1773399032575,-500.0,0.00019672,2]
[408314013,1773399032584,-500.0,0.00019672,2]
[408314014,1773399032593,-150.0,0.00019672,2]
[408314015,1773399032602,-167.5639393,0.00019672,2]
[408314016,1773399032611,-500.0,0.00019672,2]
[408314017,1773399032620,-350.0,0.00019672,2]
[408314018,1773399032629,-200.0,0.00019672,2]
[408314019,1773399032639,-200.0,0.00019672,2]
[408314020,1773399032648,-200.0,0.00019672,2]
[408314021,1773399032657,-175.89347199,0.000197,2]
[408314022,1773399032668,-827.99,0.00019711,2]
[408314023,1773399032678,-1628.00897482,0.00019718,2]
[408314024,1773399032688,-151.0,0.00019718,2]
[408314025,1773399032698,-150.0,0.00019726,2]
[408314026,1773399032707,-150.0,0.00019726,2]
[408314027,1773399032717,-500.0,0.00019726,2]
[408314028,1773399032727,-500.0,0.00019726,2]
[408314029,1773399032736,-150.0,0.00019726,2]
[408314030,1773399032746,-500.0,0.00019726,2]
[408314031,1773399032756,-281.72961941,0.00019726,2]
[408314032,1773399032766,-500.0,0.00019726,2]
[408314033,1773399032776,-150.0,0.00019726,2]
[408314034,1773399032786,-6628.82,0.00019726,2]
[408314035,1773399032795,-150.99,0.00019726,2]
[408314036,1773399032804,-150.99,0.00019726,2]
[408314037,1773399032813,-449.0,0.00019726,2]
[408314038,1773399032823,-606.54492345,0.00019726,2]
[408314039,1773399032832,-150.0,0.00019726,2]
[408314040,1773399032841,-417.32942048,0.00019726,2]
[408314041,1773399032851,-258.42,0.0001973,2]
[408314042,1773399032860,-9999.99,0.0001973,2]
[408314043,1773399032869,-29198.59,0.0001973,2]
[408314044,1773399032881,-328.94,0.0001973,2]
[408314045,1773399032890,-9999.99,0.0001973,2]
[408314046,1773399032900,-166.66,0.00019764,2]
[408314047,1773399032909,-151.0,0.00019773,2]
[408314048,1773399032919,-200.0,0.00019781,2]
[408314049,1773399032929,-150.0,0.00019781,2]
[408314050,1773399032938,-506.93013394,0.00019781,2]
[408314051,1773399032947,-500.0,0.00019781,2]
[408314052,1773399032957,-212.07061188,0.00019781,2]
[408314053,1773399032967,-500.0,0.00019781,2]
[408314054,1773399032976,-500.0,0.00019781,2]
[408314055,1773399032985,-200.0,0.00019781,2]
[408314056,1773399032994,-165.4706198,0.00019781,2]
[408314057,1773399033004,-846.9257,0.000198,2]
[408314058,1773399033013,-440.24019,0.000198,2]
[408314059,1773399033022,-440.2402,0.000198,2]
[408314060,1773399033031,-2038.0,0.000198,2]
[408314061,1773399033041,-179.349,0.00019812,2]
[408314062,1773399033050,-1386.007,0.00019822,2]
[408314063,1773399033060,-196.0,0.00019827,2]
[408314064,1773399033070,-151.0,0.00019828,2]
[408314065,1773399033079,-150.0,0.00019836,2]
[408314066,1773399033088,-500.0,0.00019836,2]
[408314067,1773399033097,-199.08843047,0.00019836,2]
[408314068,1773399033106,-169.88127929,0.00019836,2]
[408314069,1773399033115,-151.0,0.00019883,2]
[408314070,1773399033124,-4067.72000362,0.00019889,2]
[408314071,1773399033134,-150.0,0.0001989,2]
[408314072,1773399033143,-584.05975024,0.0001989,2]
[408314073,1773399033152,-1000.0,0.00019899,2]
[408314074,1773399033162,-2497.3535,0.00019899,2]
[408314075,1773399033174,-152.46770078,0.000199,10]
[408314076,1773399033183,-157.4458042,0.000199,10]
[408314077,1773399033192,-156.56434336,0.000199,10]
[408314078,1773399033201,-157.90648659,0.000199,10]
[408314079,1773399033211,-167.74279387,0.000199,2]
[408314080,1773399033221,-234.5008,0.000199,2]
[408314081,1773399033230,-789.9536194,0.000199,2]
[408314082,1773399033240,-499.07884004,0.000199,2]
[408314083,1773399033252,-177.33230872,0.000199,2]
[408314084,1773399033261,-29837.34493793,0.000199,2]
[408314085,1773399033271,-151.0,0.00019938,2]
[408314086,1773399033280,-150.0,0.00019945,2]
[408314087,1773399033289,-163.3177747,0.00019973,2]
[408314088,1773399033298,-500.0,0.00019973,2]
[408314089,1773399033307,-500.0,0.00019973,2]
[408314090,1773399033316,-151.0,0.00019997,2]
[408314091,1773399033325,-500.0,0.00019999,2]
[408314092,1773399033335,-500.0,0.00019999,2]
[408314093,1773399033344,-500.0,0.00019999,2]
[408314094,1773399033353,-500.0,0.00019999,2]
[408314095,1773399033363,-501.14514785,0.00019999,2]
[408314096,1773399033372,-500.0,0.00019999,2]
[408314097,1773399033381,-500.0,0.00019999,2]
[408314098,1773399033390,-500.0,0.00019999,2]
[408314099,1773399033399,-500.0,0.00019999,2]
[408314100,1773399033408,-500.0,0.00019999,2]
[408314101,1773399033417,-500.0,0.00019999,2]
[408314102,1773399033426,-500.0,0.00019999,2]
[408314103,1773399033436,-258.67259579,0.0002,2]
[408314104,1773399033445,-2453.0,0.0002,2]
[408314105,1773399033455,-1960.0,0.0002,2]
[408314106,1773399033464,-150.0,0.0002,2]
[408314107,1773399033473,-177799.632751,0.0002,2]
[408314108,1773399033486,-12260.25158696,0.0002,2]
[408314109,1773399033498,-907.025,0.0002,2]
[408314110,1773399033513,-10039.46906331,0.0002,2]
[408314111,1773399033529,-8278.21260272,0.0002,2]
[408314113,1773399038223,-6295.55,0.0002,2]
[408314114,1773399038234,-1449.3393889,0.0002,2]
[408314115,1773399038245,-82841.91048791,0.0002,2]
[408314157,1773399040891,-373.58184969,0.0002,2]
[408314158,1773399040903,-3451.94947151,0.0002,2]
[408314170,1773399045604,-6756.038,0.0001968,2]
[408314171,1773399045615,-493.40193528,0.000199,2]
[408314172,1773399045624,-55593.20477671,0.0002,2]
[408314173,1773399045869,-610.77887769,0.0002,2]
[408314186,1773399046306,-1803.31923949,0.0002,2]
[408314187,1773399046318,-3628.2472,0.0002,2]
[408314193,1773399292930,1585.82,0.00032877,120]
[408314492,1773399762206,150.0,0.00031233,120]
[408314494,1773399765023,318.57888098,0.0003287,120]
[408314496,1773399787125,150.0,0.00031233,120]
[408314636,1773399994280,199.91424909,0.0003287,120]
[408314638,1773400019874,35071.18,0.00032876,120]
[408314640,1773400046757,198.0,0.0003287,120]
[408314649,1773400231345,-1298.5,0.00016157,2]
[408314650,1773400231355,-223.27474466,0.00016178,2]
[408314651,1773400231365,-1200.0,0.00016199,2]
[408314652,1773400231374,-6729.95070576,0.000162,5]
[408314653,1773400231384,-300.0,0.00016604,2]
[408314654,1773400231393,-2500.0,0.00016605,2]
[408314655,1773400231403,-300.0,0.00017009,2]
[408314656,1773400231412,-250.0,0.00017773,2]
[408314657,1773400231421,-600.0,0.00017773,2]
[408314658,1773400231431,-2500.0,0.00017773,2]
[408314659,1773400231440,-2500.0,0.00017773,2]
[408314660,1773400231450,-1680.0,0.00017796,2]
[408314661,1773400231459,-195.0,0.0001782,2]
[408314662,1773400231468,-252.14460144,0.0001782,2]
[408314663,1773400231479,-600.0,0.0001782,2]
[408314664,1773400231495,-2500.0,0.0001782,2]
[408314665,1773400231505,-500.0,0.0001782,2]
[408314666,1773400231519,-2500.0,0.0001782,2]
[408314667,1773400231529,-300.0,0.0001782,2]
[408314668,1773400231539,-500.0,0.0001782,2]
[408314669,1773400231548,-550.0,0.00017999,2]
[408314671,1773400231559,-17766.7711737,0.00018,2]
[408314673,1773400231568,-308.94322639,0.00018,2]
[408314674,1773400231577,-1003.45460242,0.00018,2]
[408314675,1773400231589,-264.08,0.00018074,14]
[408314676,1773400231598,-166.66,0.00018075,2]
[408314677,1773400231608,-166.66,0.00018455,2]
[408314678,1773400231618,-3240.0,0.00018652,2]
[408314679,1773400231628,-1327.8,0.00018784,2]
[408314680,1773400231641,-166.66,0.00018836,2]
[408314681,1773400231650,-200.0,0.00018897,2]
[408314682,1773400231659,-164.29,0.00018897,2]
[408314683,1773400231669,-500.0,0.00018999,2]
[408314684,1773400231678,-151.0,0.00018999,2]
[408314685,1773400231687,-500.0,0.00019054,2]
[408314686,1773400231696,-151.0,0.00019054,2]
[408314687,1773400231706,-175.0,0.00019079,2]
[408314688,1773400231716,-160.0,0.00019093,2]
[408314689,1773400231725,-500.0,0.00019109,2]
[408314690,1773400231735,-151.0,0.00019109,2]
[408314691,1773400231744,-600.2919257,0.00019164,2]
[408314692,1773400231754,-151.0,0.00019164,2]
[408314693,1773400231764,-166.66,0.00019216,2]
[408314694,1773400231773,-9999.99,0.00019339,2]
[408314695,1773400231783,-9185.75,0.00019339,2]
[408314696,1773400231792,-150.99,0.00019339,2]
[408314697,1773400231802,-832.91539973,0.000194,2]
[408314698,1773400231812,-603.83723392,0.00019499,2]
[408314699,1773400231821,-1249.01126449,0.00019499,2]
[408314700,1773400231831,-603.83723389,0.00019544,2]
[408314701,1773400231844,-1249.01126448,0.00019544,2]
[408314702,1773400231853,-640.3340267,0.00019544,2]
[408314703,1773400231863,-2351.0,0.00019551,2]
[408314704,1773400231872,-500.0,0.00019573,2]
[408314705,1773400231881,-500.0,0.00019573,2]
[408314706,1773400231890,-500.0,0.00019573,2]
[408314707,1773400231900,-603.83723389,0.00019588,2]
[408314708,1773400231910,-1249.01126448,0.00019588,2]
[408314709,1773400231919,-235.28,0.0001959,2]
[408314710,1773400231928,-1343.0,0.0001959,2]
[408314711,1773400231939,-1043.0,0.0001959,2]
[408314712,1773400231951,-620.0,0.0001959,2]
[408314713,1773400231960,-784.974,0.0001959,2]
[408314714,1773400231970,-2463.0,0.0001959,2]
[408314715,1773400231979,-3753.0,0.0001959,2]
[408314716,1773400231988,-166.66,0.00019597,2]
[408314717,1773400231997,-500.0,0.00019598,2]
[408314718,1773400232007,-256.35170253,0.000196,2]
[408314719,1773400232016,-11746.7766,0.0001963,2]
[408314720,1773400232026,-603.83723389,0.00019633,2]
[408314721,1773400232038,-1249.01126448,0.00019633,2]
[408314722,1773400232048,-603.83723389,0.00019677,2]
[408314723,1773400232059,-1249.01126448,0.00019677,2]
[408314724,1773400232068,-2807.0,0.0001968,2]
[408314725,1773400232077,-603.83723389,0.00019722,2]
[408314726,1773400232088,-1249.01126448,0.00019722,2]
[408314727,1773400232097,-150.0,0.00019726,2]
[408314728,1773400232107,-150.0,0.00019726,2]
[408314729,1773400232117,-150.0,0.00019726,2]
[408314730,1773400232129,-150.0,0.00019726,2]
[408314731,1773400232139,-150.0,0.00019726,2]
[408314732,1773400232148,-150.0,0.00019726,2]
[408314733,1773400232157,-150.0,0.00019726,2]
[408314734,1773400232166,-150.0,0.00019726,2]
[408314735,1773400232175,-150.0,0.00019726,2]
[408314736,1773400232184,-150.0,0.00019726,2]
[408314737,1773400232193,-603.83723389,0.00019766,2]
[408314738,1773400232202,-1249.01126448,0.00019766,2]
[408314739,1773400232212,-150.0,0.00019781,2]
[408314740,1773400232221,-253.69312086,0.00019781,2]
[408314741,1773400232230,-168.0,0.00019783,2]
[408314742,1773400232240,-163.05973,0.000198,2]
[408314743,1773400232249,-163.05973,0.000198,2]
[408314744,1773400232258,-189.362,0.00019807,2]
[408314745,1773400232267,-1706.759,0.00019807,2]
[408314746,1773400232276,-603.83723389,0.00019811,2]
[408314747,1773400232286,-1249.01126448,0.00019811,2]
[408314748,1773400232295,-200.0,0.00019836,2]
[408314749,1773400232304,-603.83723389,0.00019855,2]
[408314750,1773400232313,-1249.01126448,0.00019855,2]
[408314751,1773400232322,-168.0,0.00019886,2]
[408314752,1773400232333,-1609.35610495,0.000199,2]
[408314753,1773400232463,-6565.45669505,0.000199,2]
[408314754,1773400232473,-169.0556925,0.000199,2]
[408314755,1773400232482,-3622.8222,0.000199,2]
[408314756,1773400232491,-603.83723389,0.000199,2]
[408314757,1773400232503,-1249.01126448,0.000199,2]
[408314758,1773400232515,-200.76634596,0.000199,2]
[408314759,1773400232525,-526.63574626,0.000199,2]
[408314760,1773400232534,-332.7192267,0.000199,2]
[408314761,1773400232543,-303.79637721,0.00019973,2]
[408314762,1773400232552,-501.62823002,0.00019973,2]
[408314763,1773400232563,-500.0,0.00019973,2]
[408314764,1773400232572,-500.0,0.00019973,2]
[408314765,1773400232581,-500.0,0.00019973,2]
[408314766,1773400232592,-500.0,0.00019973,2]
[408314767,1773400232602,-326.7545929,0.00019973,2]
[408314768,1773400232611,-500.0,0.00019973,2]
[408314769,1773400232620,-501.1994605,0.00019973,2]
[408314770,1773400232630,-500.0,0.00019973,2]
[408314771,1773400232639,-500.0,0.00019973,2]
[408314772,1773400232648,-166.66,0.00019977,2]
[408314773,1773400232658,-1009.37392751,0.00019998,2]
[408314774,1773400232667,-155.0,0.00019999,2]
[408314775,1773400232676,-269.60361192,0.00019999,2]
[408314778,1773400237450,-508.0,0.00019574,2]
[408314779,1773400237505,-396.56870215,0.00019574,2]
[408314780,1773400237519,-245.17706246,0.00019574,2]
[408314781,1773400237534,-357.66354334,0.00019574,2]
[408314782,1773400237548,-652.85042678,0.00019574,2]
[408314783,1773400237561,-230.39638808,0.00019999,2]
[408314784,1773400237572,-1564.0,0.0002,2]
[408314785,1773400237583,-1253.0,0.0002,2]
[408314786,1773400237596,-9330.16593651,0.0002,2]
[408314790,1773400239549,-1183591.94968829,0.0002,2]
[408314791,1773400239561,-7461.04821138,0.0002,14]
[408314792,1773400239570,-152.32156984,0.0002,2]
[408314793,1773400239579,-2141840.20653362,0.0002,2]
[408314794,1773400239656,-18785.53133616,0.0002,2]
[408314795,1773400239667,-6275.44125084,0.0002,2]
[408314796,1773400239678,-782.58022187,0.0002,2]
[408314820,1773400917313,999953.49699992,0.000328,120]
[408314821,1773401075740,131260.15654791,0.0003286,120]
[408314822,1773401088393,164.56,9.302e-05,2]
[408314823,1773401088593,164.56,0.00010631,2]
[408314824,1773401088902,164.56,0.0001196,2]
[408314825,1773401089103,164.56,0.00013289,2]
[408314829,1773401234105,-164.56,0.00014618,2]
[408314830,1773401234126,-250.0,0.00015,2]
[408314831,1773401234149,-164.56,0.00015947,2]
[408314832,1773401234171,-600.0,0.0001608,2]
[408314833,1773401234191,-2500.0,0.000165,2]
[408314834,1773401234212,-2500.0,0.00016858,2]
[408314835,1773401234233,-164.56,0.00017275,2]
[408314836,1773401234252,-2000.0,0.0001844,2]
[408314837,1773401234273,-164.56,0.00018604,2]
[408314838,1773401234294,-1500.0,0.00018716,2]
[408314839,1773401234316,-1200.0,0.00018795,2]
[408314840,1773401234336,-1276.76,0.00018796,2]
[408314841,1773401234356,-250.0,0.00018873,2]
[408314842,1773401234377,-150.0,0.00018897,2]
[408314843,1773401234398,-2000.0,0.00018897,2]
[408314844,1773401234419,-589.17,0.00018897,2]
[408314845,1773401234439,-500.0,0.00018897,2]
[408314846,1773401234461,-17641.24354772,0.00018897,2]
[408314847,1773401250160,-14940.24645228,0.00018897,2]
[408314848,1773401250181,-188.67257488,0.00018897,2]
[408314849,1773401250205,-200.0,0.00019113,2]
[408314850,1773401250228,-151.0,0.00019136,2]
[408314851,1773401250250,-18082.9632111,0.00019139,2]
[408314856,1773401431512,-150.0,0.00018829,2]
[408314857,1773401431525,-391.97989933,0.00019038,2]
[408314858,1773401431536,-36.16270067,0.00019038,2]
[408314859,1773401431545,-892.0,0.00019137,2]
[408314860,1773401431555,-1233.36,0.00019137,2]
[408314861,1773401431564,-500.0,0.00019138,2]